bitfinex/quotes_BTCUSD_20241208
["timestamp","ask_amount","ask_price","bid_price","bid_amount"]
[1733658268161,0.0008665,99820.0,99819.0,0.18893296]
[1733658268354,0.0008665,99820.0,99819.0,0.18693296]
[1733658268806,0.0008665,99820.0,99819.0,0.18093296]
[1733658269369,0.0008665,99820.0,99819.0,0.18693296]
[1733658269575,0.0008665,99820.0,99819.0,0.18093296]
[1733658270004,0.0008665,99820.0,99819.0,0.18693296]
[1733658270574,0.0008665,99820.0,99819.0,0.18993296]
[1733658270966,0.0008665,99820.0,99819.0,0.18693296]
[1733658271573,0.0008665,99820.0,99819.0,0.18993296]
[1733658271804,0.0008665,99820.0,99819.0,0.18393296]
[1733658272006,0.0008665,99820.0,99819.0,0.18893296]
[1733658272415,0.0008665,99820.0,99819.0,0.18393296]
[1733658272641,0.0008665,99820.0,99819.0,0.18993296]
[1733658273246,0.0008665,99820.0,99819.0,0.29096426]
[1733658273466,0.0008665,99820.0,99819.0,0.28996247]
[1733658273878,0.0008665,99820.0,99819.0,0.28696247]
[1733658274294,0.0008665,99820.0,99819.0,0.28896247]
[1733658274704,0.0008665,99820.0,99819.0,0.28296247]
[1733658275045,0.0008665,99820.0,99819.0,0.28796247]
[1733658275257,0.0008665,99820.0,99819.0,0.28096247]
[1733658275463,0.0008666,99830.0,99829.0,0.180308]
[1733658276704,0.0008666,99830.0,99829.0,0.182308]
[1733658277332,0.0008666,99830.0,99829.0,0.003]
[1733658280264,0.00980329,99830.0,99829.0,0.003]
[1733658280416,0.0008666,99830.0,99829.0,0.003]
[1733658280624,0.00980329,99830.0,99829.0,0.003]
[1733658284205,0.00980329,99830.0,99829.0,0.183308]
[1733658284529,0.0008666,99830.0,99829.0,0.183308]
[1733658284733,0.00078697,99830.0,99829.0,0.183308]
[1733658286090,0.00078697,99830.0,99829.0,0.003]
[1733658290468,0.180292,99838.0,99829.0,0.003]
[1733658290689,0.005,99840.0,99829.0,0.003]
[1733658290910,0.00894759,99837.0,99829.0,0.003]
[1733658291122,0.18924245,99839.0,99829.0,0.003]
[1733658291340,0.00894516,99836.0,99829.0,0.003]
[1733658291581,0.00895002,99838.0,99829.0,0.001]
[1733658291779,0.00894273,99835.0,99829.0,0.001]
[1733658291990,0.18029,99839.0,99824.0,0.180316]
[1733658292216,0.00894031,99834.0,99822.0,0.180319]
[1733658292457,0.001,99836.0,99826.0,0.180313]
[1733658292674,0.00893788,99833.0,99823.0,0.180317]
[1733658292913,0.18923973,99835.0,99823.0,0.180317]
[1733658293139,0.00893733,99832.0,99824.0,0.00744293]
[1733658293314,0.00894031,99834.0,99825.0,0.36063]
[1733658293540,0.00893733,99831.0,99825.0,0.36063]
[1733658293761,0.180292,99838.0,99825.0,0.36063]
[1733658294239,0.00894759,99837.0,99825.0,0.36063]
[1733658295098,0.00894759,99837.0,99828.0,0.180309]
[1733658295529,0.005,99840.0,99828.0,0.180309]
[1733658295737,0.18029,99839.0,99828.0,0.180309]
[1733658295959,0.001,99837.0,99828.0,0.180309]
[1733658296180,0.00895002,99838.0,99828.0,0.180309]
[1733658296427,0.00894516,99836.0,99828.0,0.180309]
[1733658296637,0.18029,99839.0,99828.0,0.180309]
[1733658296638,0.00994759,99837.0,99828.0,0.180309]
[1733658296854,0.00894273,99835.0,99828.0,0.180309]
[1733658297073,0.00894516,99836.0,99828.0,0.180309]
[1733658297303,0.00894031,99834.0,99828.0,0.180309]
[1733658297549,0.00894273,99835.0,99828.0,0.180309]
[1733658297766,0.00893303,99833.0,99828.0,0.180309]
[1733658297978,0.001,99837.0,99828.0,0.180309]
[1733658297979,0.00893546,99834.0,99828.0,0.180309]
[1733658298184,0.18029,99839.0,99828.0,0.180309]
[1733658298185,0.00893248,99832.0,99828.0,0.180309]
[1733658298418,0.00893303,99833.0,99828.0,0.180309]
[1733658298644,0.005,99840.0,99828.0,0.180309]
[1733658299090,0.00895245,99839.0,99828.0,0.180309]
[1733658301011,0.00895245,99839.0,99826.0,0.180313]
[1733658301217,0.00895245,99839.0,99823.0,0.0798]
[1733658301445,0.00895245,99839.0,99835.0,0.180295]
[1733658301661,0.0058655,99840.0,99835.0,0.180295]
[1733658301879,0.001,99839.0,99835.0,0.180295]
[1733658302104,0.00895507,99839.0,99835.0,0.180295]
[1733658302317,0.001,99839.0,99832.0,0.180301]
[1733658302754,0.0058655,99840.0,99836.0,0.180294]
[1733658302964,0.0068655,99840.0,99832.0,0.180301]
[1733658303175,0.0058655,99840.0,99832.0,0.180301]
[1733658303377,0.00898393,99839.0,99832.0,0.360603]
[1733658303530,0.0058655,99840.0,99832.0,0.360603]
[1733658303745,0.0058655,99840.0,99824.0,0.230117]
[1733658303746,0.0058655,99840.0,99837.0,0.0798]
[1733658303953,0.0058655,99840.0,99838.0,0.15083102]
[1733658304488,0.0058655,99840.0,99839.0,0.13386745]
[1733658304702,0.0058655,99840.0,99839.0,0.4641264]
[1733658304918,0.0058655,99840.0,99839.0,0.4631249]
[1733658305361,0.0058655,99840.0,99838.0,0.46398896]
[1733658305600,0.0058655,99840.0,99839.0,0.0010015]
[1733658305793,0.0058655,99840.0,99839.0,0.0020015]
[1733658306206,0.0058655,99840.0,99839.0,0.09012418]
[1733658306532,0.0058655,99840.0,99839.0,0.09312418]
[1733658307334,0.0058655,99840.0,99839.0,0.003]
[1733658307536,0.0058655,99840.0,99839.0,0.0040015]
[1733658308136,0.0058655,99840.0,99839.0,0.0050015]
[1733658308910,0.0058655,99840.0,99839.0,0.10503101]
[1733658309123,0.0058655,99840.0,99839.0,0.18253101]
[1733658309369,0.0058655,99840.0,99839.0,0.51130153]
[1733658309531,0.0058655,99840.0,99839.0,0.73341246]
[1733658310208,0.0058655,99840.0,99839.0,0.51030003]
[1733658311352,0.0058655,99840.0,99839.0,0.68820195]
[1733658311574,0.0058655,99840.0,99839.0,0.51030003]
[1733658311791,0.0058655,99840.0,99839.0,0.68819932]
[1733658312259,0.0058655,99840.0,99839.0,0.50630003]
[1733658312500,0.0058655,99840.0,99839.0,0.52030003]
[1733658313408,0.0058655,99840.0,99839.0,0.32489756]
[1733658313626,0.0058655,99840.0,99839.0,0.65309456]
[1733658314329,0.0058655,99840.0,99839.0,0.19152951]
[1733658314530,0.0058655,99840.0,99839.0,0.19253091]
[1733658315576,0.0058655,99840.0,99839.0,0.28140335]
[1733658315789,0.0058655,99840.0,99839.0,0.19152951]
[1733658315991,0.0058655,99840.0,99839.0,0.28140335]
[1733658316230,0.0058655,99840.0,99839.0,0.28040195]
[1733658316431,0.0058655,99840.0,99839.0,0.014]
[1733658317342,0.0058655,99840.0,99815.0,0.22221895]
[1733658317343,0.01346749,99840.0,99827.0,0.180311]
[1733658317543,0.01380237,99840.0,99839.0,0.004]
[1733658317753,0.01380237,99840.0,99839.0,0.013]
[1733658317972,0.01380237,99840.0,99839.0,0.004]
[1733658318213,0.01380237,99840.0,99839.0,0.003]
[1733658318422,0.01380237,99840.0,99839.0,0.004]
[1733658320192,0.0058655,99840.0,99839.0,0.004]
[1733658320418,0.01380546,99840.0,99839.0,0.004]
[1733658320636,0.0058655,99840.0,99839.0,0.004]
[1733658320860,0.01380546,99840.0,99839.0,0.004]
[1733658321078,0.0058655,99840.0,99839.0,0.004]
[1733658321299,0.01380546,99840.0,99839.0,0.004]
[1733658321522,0.0058655,99840.0,99839.0,0.004]
[1733658321734,0.01380546,99840.0,99839.0,0.004]
[1733658321922,0.0058655,99840.0,99839.0,0.004]
[1733658322143,0.01380546,99840.0,99839.0,0.004]
[1733658322354,0.01380546,99840.0,99839.0,0.003]
[1733658322569,0.01380546,99840.0,99839.0,0.004]
[1733658323181,0.0058655,99840.0,99839.0,0.004]
[1733658323404,0.0058655,99840.0,99839.0,0.001]
[1733658323601,0.0058655,99840.0,99839.0,0.003]
[1733658323840,0.0058655,99840.0,99839.0,0.002]
[1733658324049,0.0058655,99840.0,99836.0,0.180295]
[1733658324261,0.0058655,99840.0,99839.0,0.003]
[1733658325008,0.0058655,99840.0,99836.0,0.180295]
[1733658325208,0.0058655,99840.0,99836.0,0.183295]
[1733658325707,0.0058655,99840.0,99836.0,0.182295]
[1733658326339,0.0058655,99840.0,99836.0,0.002]
[1733658326517,0.0058655,99840.0,99823.0,0.180318]
[1733658326518,0.180296,99836.0,99823.0,0.180318]
[1733658326726,0.00100002,99835.0,99820.0,0.001731]
[1733658326924,0.05671671,99835.0,99821.0,0.180322]
[1733658327149,0.00100002,99834.0,99821.0,0.180322]
[1733658327361,0.00887787,99834.0,99821.0,0.180322]
[1733658327522,0.00887787,99834.0,99822.0,0.36064]
[1733658327726,0.00787785,99834.0,99820.0,0.001731]
[1733658327973,0.00787785,99834.0,99820.0,0.002731]
[1733658328406,0.00787785,99834.0,99820.0,0.001731]
[1733658329472,0.00787785,99834.0,99823.0,0.180319]
[1733658330938,0.00787785,99834.0,99827.0,0.180311]
[1733658333572,0.00787785,99834.0,99827.0,0.181311]
[1733658334454,0.08000002,99839.0,99827.0,0.181311]
[1733658334703,0.00786482,99833.0,99827.0,0.181311]
[1733658334916,0.08000002,99839.0,99827.0,0.181311]
[1733658335297,0.00786724,99838.0,99827.0,0.181311]
[1733658335927,0.00786724,99838.0,99827.0,0.180311]
[1733658337038,0.00786724,99838.0,99828.0,0.12660171]
[1733658337304,0.00886724,99838.0,99828.0,0.22663122]
[1733658337525,0.001,99838.0,99835.0,0.180297]
[1733658337732,0.0058655,99840.0,99837.0,0.180293]
[1733658337963,0.0058655,99840.0,99838.0,0.10103101]
[1733658338177,0.0058655,99840.0,99839.0,0.18029]
[1733658339413,0.0058655,99840.0,99839.0,0.1812915]
[1733658339821,0.0058655,99840.0,99839.0,0.1852915]
[1733658340646,0.0058655,99840.0,99839.0,0.1872915]
[1733658347029,0.0058655,99840.0,99839.0,0.39332101]
[1733658347200,0.0058655,99840.0,99839.0,0.39231951]
[1733658347772,0.0058655,99840.0,99839.0,0.43240551]
[1733658349808,0.0058655,99840.0,99839.0,0.52139789]
[1733658350465,0.0058655,99840.0,99839.0,0.51939789]
[1733658350678,0.0058655,99840.0,99839.0,0.89199655]
[1733658350817,0.0058655,99840.0,99839.0,0.76050798]
[1733658351030,0.0058655,99840.0,99839.0,0.89382604]
[1733658351229,0.0058655,99840.0,99839.0,0.80996313]
[1733658351428,0.0058655,99840.0,99839.0,0.80596313]
[1733658351641,0.00100002,99869.0,99861.0,0.18025]
[1733658352132,0.00791859,99868.0,99861.0,0.18025]
[1733658352333,0.00100002,99867.0,99861.0,0.18025]
[1733658352888,0.00791374,99866.0,99861.0,0.18085696]
[1733658353028,0.00100002,99865.0,99861.0,0.18085696]
[1733658353435,0.00100002,99869.0,99861.0,0.18085696]
[1733658353704,0.00100002,99868.0,99861.0,0.18085696]
[1733658353864,0.00891861,99868.0,99861.0,0.00060696]
[1733658357890,0.00891861,99868.0,99861.0,0.18085596]
[1733658360722,0.00891861,99868.0,99861.0,0.00060696]
[1733658364026,0.00891861,99868.0,99861.0,0.18085696]
[1733658364251,0.15641313,99877.0,99861.0,0.18085696]
[1733658364455,0.0065964,99867.0,99861.0,0.18085696]
[1733658364678,0.0769,99876.0,99861.0,0.18085696]
[1733658365145,0.00661339,99875.0,99861.0,0.18085696]
[1733658366506,0.00661339,99875.0,99869.0,0.180235]
[1733658366946,0.01044984,99882.0,99869.0,0.180235]
[1733658367175,0.01044984,99882.0,99861.0,0.00160825]
[1733658367176,0.10002951,99881.0,99861.0,0.00060696]
[1733658367385,0.1066642,99881.0,99861.0,0.00060696]
[1733658367601,0.180223,99876.0,99861.0,0.00060696]
[1733658368038,0.00662013,99875.0,99861.0,0.00060696]
[1733658368451,0.18684513,99875.0,99861.0,0.00060696]
[1733658368678,0.00662013,99875.0,99861.0,0.00060696]
[1733658369022,0.0008654,99880.0,99861.0,0.00060696]
[1733658369221,0.00662983,99879.0,99861.0,0.00060696]
[1733658369572,0.00662983,99879.0,99863.0,0.180246]
[1733658371522,0.00662983,99879.0,99863.0,0.360492]
[1733658372147,0.00662983,99879.0,99863.0,0.180246]
[1733658372974,0.00662983,99879.0,99867.0,0.180239]
[1733658373910,0.18684783,99879.0,99863.0,0.180246]
[1733658374320,0.00662983,99879.0,99863.0,0.180246]
[1733658378598,0.18684783,99879.0,99861.0,0.18085596]
[1733658379021,0.18684783,99879.0,99861.0,0.18185725]
[1733658379233,0.04448242,99878.0,99861.0,0.00060696]
[1733658379436,0.13245532,99877.0,99861.0,0.00060696]
[1733658379804,0.180237,99869.0,99861.0,0.00060696]
[1733658380009,0.180239,99867.0,99861.0,0.00060696]
[1733658380221,0.00663106,99866.0,99861.0,0.00060696]
[1733658380423,0.00663106,99866.0,99846.0,0.078]
[1733658380424,0.180253,99860.0,99846.0,0.078]
[1733658380624,0.00663083,99859.0,99843.0,0.180281]
[1733658380895,0.00057819,99866.0,99843.0,0.180281]
[1733658381096,0.00057819,99866.0,99840.0,0.0017308]
[1733658381313,0.0789,99863.0,99861.0,0.001]
[1733658381516,0.0789,99863.0,99840.0,0.0017308]
[1733658381517,0.180266,99852.0,99840.0,0.0017308]
[1733658381724,0.0789,99851.0,99840.0,0.0017308]
[1733658381898,0.08553083,99851.0,99843.0,0.007]
[1733658382119,0.08553083,99851.0,99843.0,0.002]
[1733658383064,0.08553083,99851.0,99840.0,0.0017308]
[1733658384623,0.08553083,99851.0,99840.0,0.0027308]
[1733658384818,0.08553083,99851.0,99841.0,0.180286]
[1733658385032,0.0789,99851.0,99841.0,0.180286]
[1733658385240,0.00662691,99850.0,99841.0,0.180286]
[1733658385454,0.00662691,99850.0,99840.0,0.0027308]
[1733658385689,0.18689691,99850.0,99840.0,0.0027308]
[1733658386105,0.00662691,99850.0,99840.0,0.0027308]
[1733658386529,0.18689691,99850.0,99840.0,0.0017308]
[1733658386748,0.00662691,99850.0,99840.0,0.0017308]
[1733658387188,0.00762691,99850.0,99840.0,0.0017308]
[1733658387436,0.00962691,99850.0,99840.0,0.0017308]
[1733658388842,0.00962691,99850.0,99840.0,0.1820188]
[1733658390310,0.00962691,99850.0,99840.0,0.0017308]
[1733658390633,0.00962691,99850.0,99841.0,0.180286]
[1733658390833,0.003,99850.0,99841.0,0.180286]
[1733658391114,0.003,99850.0,99840.0,0.0017308]
[1733658391544,0.002,99850.0,99840.0,0.0017308]
[1733658391748,0.003,99850.0,99840.0,0.0017308]
[1733658392823,0.001,99850.0,99840.0,0.1820168]
[1733658393003,0.002,99850.0,99840.0,0.1820168]
[1733658393449,0.001,99850.0,99840.0,0.1820168]
[1733658393663,0.003,99850.0,99840.0,0.1820168]
[1733658394336,0.003,99850.0,99844.0,0.18028]
[1733658395700,0.00057819,99866.0,99850.0,0.18027]
[1733658395910,0.00057819,99866.0,99851.0,0.10103084]
[1733658396295,0.00057819,99866.0,99858.0,0.180254]
[1733658396743,0.00057819,99866.0,99861.0,0.180249]
[1733658397191,0.00157819,99866.0,99861.0,0.180249]
[1733658397397,0.00257819,99866.0,99865.0,0.180243]
[1733658397601,0.00157819,99866.0,99865.0,0.28027251]
[1733658397827,0.00057819,99866.0,99865.0,0.28027251]
[1733658399827,0.00057819,99866.0,99865.0,0.28627251]
[1733658400430,0.00057819,99866.0,99865.0,0.28427251]
[1733658400849,0.00057819,99866.0,99865.0,0.28627251]
[1733658407853,0.00057819,99866.0,99865.0,0.30927251]
[1733658408055,0.00057819,99866.0,99865.0,0.39197251]
[1733658408886,0.00057819,99866.0,99865.0,0.36897251]
[1733658409292,0.00057819,99866.0,99865.0,0.41877251]
[1733658409508,0.00057819,99866.0,99865.0,0.42901688]
[1733658410261,0.00057819,99866.0,99865.0,0.006]
[1733658411792,0.00749071,99866.0,99865.0,0.006]
[1733658411930,0.26221919,99866.0,99865.0,0.006]
[1733658412146,0.26909771,99866.0,99865.0,0.006]
[1733658412601,0.00745671,99866.0,99865.0,0.006]
[1733658413262,0.00057819,99866.0,99865.0,0.006]
[1733658413903,0.00057819,99866.0,99865.0,0.10602951]
[1733658414117,0.00057819,99866.0,99865.0,0.1070307]
[1733658414340,0.000866,99870.0,99865.0,0.1070307]
[1733658414588,0.000866,99870.0,99867.0,0.0498]
[1733658414830,0.000866,99870.0,99868.0,0.28126768]
[1733658415669,0.000866,99870.0,99869.0,0.0827]
[1733658415904,0.000866,99870.0,99869.0,0.20572951]
[1733658417244,0.000866,99870.0,99869.0,0.21572951]
[1733658418084,0.000866,99870.0,99869.0,0.21246358]
[1733658418489,0.000866,99870.0,99869.0,0.21146358]
[1733658418917,0.000866,99870.0,99869.0,0.21546358]
[1733658420417,0.000866,99870.0,99869.0,0.13276358]
[1733658420880,0.000866,99870.0,99869.0,0.11403063]
[1733658422375,0.000866,99870.0,99869.0,0.013]
[1733658422751,0.00775022,99870.0,99869.0,0.013]
[1733658423249,0.00775022,99870.0,99869.0,0.009]
[1733658423470,0.00775022,99870.0,99869.0,0.002]
[1733658423919,0.00775022,99870.0,99865.0,0.00057819]
[1733658424338,0.00775022,99870.0,99869.0,0.001]
[1733658424994,0.00775022,99870.0,99869.0,0.007]
[1733658425409,0.00775022,99870.0,99869.0,0.001]
[1733658425654,0.00775022,99870.0,99869.0,0.003]
[1733658426071,0.000866,99870.0,99869.0,0.003]
[1733658426351,0.0077478,99870.0,99869.0,0.003]
[1733658426858,0.0077478,99870.0,99869.0,0.004]
[1733658428410,0.0077478,99870.0,99869.0,0.001]
[1733658428614,0.0077478,99870.0,99865.0,0.00057819]
[1733658428821,0.0077478,99870.0,99869.0,0.003]
[1733658429032,0.0077478,99870.0,99869.0,0.004]
[1733658429455,0.0077478,99870.0,99869.0,0.003]
[1733658429647,0.0077478,99870.0,99865.0,0.00057819]
[1733658429852,0.0077478,99870.0,99865.0,0.00457819]
[1733658430145,0.0077478,99870.0,99865.0,0.00157819]
[1733658430326,0.0077478,99870.0,99865.0,0.00057819]
[1733658430557,0.180236,99869.0,99865.0,0.00057819]
[1733658430993,0.00688422,99868.0,99865.0,0.00057819]
[1733658431669,0.0821,99866.0,99865.0,0.00057819]
[1733658431870,0.08898664,99866.0,99865.0,0.00057819]
[1733658432311,0.08898664,99866.0,99865.0,0.00357819]
[1733658432495,0.08898664,99866.0,99865.0,0.00157819]
[1733658432999,0.08898664,99866.0,99865.0,0.00457819]
[1733658433212,0.13818664,99866.0,99865.0,0.00457819]
[1733658433443,0.13818664,99866.0,99865.0,0.00657819]
[1733658436431,0.00688664,99866.0,99865.0,0.00457819]
[1733658436663,0.00688664,99866.0,99865.0,0.18082119]
[1733658436863,0.000866,99870.0,99865.0,0.1006077]
[1733658437088,0.000866,99870.0,99867.0,0.180239]
[1733658437312,0.000866,99870.0,99869.0,0.180236]
[1733658437517,0.000866,99870.0,99869.0,0.28126669]
[1733658437736,0.000866,99870.0,99869.0,0.28026551]
[1733658439335,0.000866,99870.0,99869.0,0.28926551]
[1733658439564,0.000866,99870.0,99869.0,0.10902951]
[1733658439791,0.000866,99870.0,99869.0,0.10002951]
[1733658440019,0.000866,99870.0,99869.0,0.11103069]
[1733658445138,0.000866,99870.0,99869.0,0.01]
[1733658446104,0.00771759,99870.0,99869.0,0.01]
[1733658446324,0.000866,99870.0,99869.0,0.01]
[1733658446536,0.00771759,99870.0,99869.0,0.01]
[1733658446751,0.000866,99870.0,99869.0,0.01]
[1733658446881,0.00771759,99870.0,99869.0,0.01]
[1733658454767,0.00771759,99870.0,99869.0,0.190236]
[1733658454985,0.00771759,99870.0,99869.0,0.41996551]
[1733658455194,0.000866,99870.0,99869.0,0.41996551]
[1733658465516,0.0008669,99890.0,99879.0,0.180218]
[1733658465752,0.0008669,99890.0,99879.0,0.18121909]
[1733658466888,0.0008669,99890.0,99879.0,0.18221909]
[1733658467745,0.0008669,99890.0,99879.0,0.3890486]
[1733658467892,0.0008669,99890.0,99879.0,0.39862175]
[1733658468329,0.0008669,99890.0,99879.0,0.44462175]
[1733658468921,0.0008669,99890.0,99879.0,0.52943874]
[1733658469122,0.0008669,99890.0,99879.0,0.44462175]
[1733658469329,0.0008669,99890.0,99879.0,0.58684724]
[1733658469726,0.0008669,99890.0,99879.0,0.58284724]
[1733658469934,0.0008669,99890.0,99879.0,0.82717158]
[1733658470133,0.0008669,99890.0,99879.0,0.63268878]
[1733658470308,0.0008669,99890.0,99879.0,0.64385216]
[1733658470539,0.0008669,99890.0,99879.0,0.64885216]
[1733658470731,0.0008669,99890.0,99879.0,0.76325216]
[1733658470940,0.0008669,99890.0,99879.0,0.64885216]
[1733658471176,0.0008669,99890.0,99879.0,0.51578513]
[1733658471375,0.0008669,99890.0,99879.0,0.52478513]
[1733658471826,0.0008669,99890.0,99879.0,0.51978513]
[1733658472208,0.0008669,99890.0,99879.0,0.61446263]
[1733658472427,0.0008669,99890.0,99879.0,0.56446263]
[1733658472575,0.0008669,99890.0,99879.0,0.61446263]
[1733658473192,0.0008669,99890.0,99879.0,0.52578513]
[1733658475390,0.0008669,99890.0,99880.0,0.073]
[1733658475686,0.0008669,99890.0,99889.0,0.1802]
[1733658475894,0.0008669,99890.0,99889.0,0.28123046]
[1733658476103,0.0008669,99890.0,99889.0,0.28022951]
[1733658476962,0.0008669,99890.0,99889.0,0.28922951]
[1733658478501,0.0008669,99890.0,99889.0,0.29322951]
[1733658483019,0.01003496,99900.0,99899.0,0.180181]
[1733658484345,0.01003496,99900.0,99899.0,0.18024199]
[1733658484553,0.00503496,99900.0,99899.0,0.33617241]
[1733658484776,0.00503496,99900.0,99899.0,0.34270359]
[1733658485241,0.00503496,99900.0,99899.0,0.34070359]
[1733658485692,0.00503496,99900.0,99899.0,0.34370359]
[1733658486124,0.00503496,99900.0,99899.0,0.34070359]
[1733658486351,0.00503496,99900.0,99899.0,0.34670359]
[1733658486811,0.00503496,99900.0,99899.0,0.35570359]
[1733658487752,0.0008658,99920.0,99909.0,0.453163]
[1733658487987,0.0003658,99910.0,99909.0,0.90919606]
[1733658488204,0.0003658,99910.0,99909.0,0.82985802]
[1733658488406,0.0003658,99910.0,99909.0,0.87982477]
[1733658488630,0.0003658,99910.0,99909.0,1.07827366]
[1733658488867,0.0003658,99910.0,99909.0,1.12241521]
[1733658489074,0.0003658,99910.0,99909.0,0.95407893]
[1733658489285,0.0003658,99910.0,99909.0,1.08497893]
[1733658489497,0.0003658,99910.0,99909.0,1.09297893]
[1733658489741,0.0003658,99910.0,99909.0,1.09197893]
[1733658490151,0.0003658,99910.0,99909.0,1.10097893]
[1733658490380,0.0003658,99910.0,99909.0,1.09197893]
[1733658490605,0.0008658,99920.0,99919.0,0.403145]
[1733658490866,0.0008658,99920.0,99919.0,0.50317451]
[1733658491092,0.0008658,99920.0,99919.0,0.58417451]
[1733658491749,0.0008658,99920.0,99919.0,0.28017451]
[1733658492441,0.0008658,99920.0,99919.0,0.28617451]
[1733658492669,0.0008658,99920.0,99919.0,0.29517451]
[1733658493962,0.0008658,99920.0,99919.0,0.28617451]
[1733658494170,0.0008658,99920.0,99919.0,0.28817451]
[1733658494599,0.0008658,99920.0,99919.0,0.29117451]
[1733658495019,0.0008658,99920.0,99919.0,0.28817451]
[1733658495460,0.0008658,99920.0,99919.0,0.29217451]
[1733658495926,0.0008658,99920.0,99919.0,0.004]
[1733658496357,0.0008658,99920.0,99919.0,0.013]
[1733658496587,0.00710348,99920.0,99919.0,0.013]
[1733658496791,0.0008658,99920.0,99919.0,0.013]
[1733658497001,0.00710348,99920.0,99919.0,0.004]
[1733658497229,0.0008658,99920.0,99909.0,0.35843076]
[1733658497437,0.00710348,99920.0,99919.0,0.004]
[1733658497649,0.0008658,99920.0,99919.0,0.007]
[1733658497788,0.00710348,99920.0,99919.0,0.007]
[1733658497995,0.0008658,99920.0,99919.0,0.004]
[1733658498199,0.00710348,99920.0,99919.0,0.004]
[1733658498597,0.0008658,99920.0,99913.0,0.180156]
[1733658499037,0.0008658,99920.0,99910.0,0.10002951]
[1733658499038,0.0008658,99920.0,99919.0,0.004]
[1733658499241,0.0008658,99920.0,99919.0,0.006]
[1733658499372,0.00710348,99920.0,99919.0,0.006]
[1733658499572,0.0008658,99920.0,99919.0,0.002]
[1733658499779,0.00710348,99920.0,99919.0,0.002]
[1733658499981,0.0008658,99920.0,99919.0,0.002]
[1733658500210,0.09020348,99920.0,99919.0,0.002]
[1733658500410,0.0839658,99920.0,99899.0,0.01036826]
[1733658500733,0.13540348,99920.0,99919.0,0.004]
[1733658501855,0.13540348,99920.0,99901.0,0.002]
[1733658502009,0.180164,99909.0,99899.0,6.099e-05]
[1733658502179,0.180164,99909.0,99901.0,0.004]
[1733658502427,0.00623526,99908.0,99899.0,6.099e-05]
[1733658502948,0.00623526,99907.0,99899.0,6.099e-05]
[1733658503357,0.180163,99910.0,99901.0,0.003]
[1733658503558,0.00623217,99906.0,99899.0,6.099e-05]
[1733658503757,0.180163,99910.0,99899.0,6.099e-05]
[1733658503988,0.00622908,99905.0,99899.0,0.00106099]
[1733658504148,0.180163,99910.0,99899.0,0.00106099]
[1733658504568,0.180163,99910.0,99899.0,6.099e-05]
[1733658504569,0.00622225,99909.0,99899.0,6.099e-05]
[1733658504796,0.00622225,99909.0,99899.0,0.00206099]
[1733658504994,0.00622225,99909.0,99899.0,0.00506099]
[1733658505262,0.00622225,99909.0,99899.0,0.00206099]
[1733658505421,0.00622225,99909.0,99900.0,0.18018]
[1733658505618,0.1291658,99920.0,99899.0,0.00306099]
[1733658505619,0.180165,99908.0,99899.0,0.00306099]
[1733658505833,0.18638857,99908.0,99899.0,0.00106099]
[1733658506126,0.18638857,99908.0,99899.0,0.00406099]
[1733658506334,0.18638857,99908.0,99899.0,0.00106099]
[1733658506762,0.18638857,99908.0,99899.0,0.00406099]
[1733658507411,0.18638857,99908.0,99899.0,0.00306099]
[1733658507940,0.18638857,99908.0,99900.0,0.001]
[1733658508275,0.18638857,99908.0,99899.0,0.00306099]
[1733658508485,0.00622357,99908.0,99900.0,0.18018]
[1733658508717,0.180159,99912.0,99900.0,0.18018]
[1733658508996,0.00622599,99911.0,99900.0,0.18018]
[1733658509415,0.00622599,99911.0,99900.0,0.18418]
[1733658509831,0.00622599,99911.0,99900.0,0.18118]
[1733658510057,0.180162,99910.0,99900.0,0.001]
[1733658510677,0.00622138,99909.0,99900.0,0.001]
[1733658510879,0.00622138,99909.0,99899.0,6.099e-05]
[1733658511830,0.00622138,99909.0,99900.0,0.001]
[1733658512015,0.00622138,99909.0,99900.0,0.003]
[1733658512443,0.00622138,99909.0,99899.0,6.099e-05]
[1733658512644,0.00622138,99909.0,99899.0,0.00106099]
[1733658512842,0.00622138,99909.0,99900.0,0.18018]
[1733658513162,0.180159,99912.0,99900.0,0.18018]
[1733658513547,0.0062229,99911.0,99900.0,0.18018]
[1733658513846,0.180159,99912.0,99900.0,0.18018]
[1733658514070,0.180159,99912.0,99899.0,6.099e-05]
[1733658514301,0.180162,99910.0,99900.0,0.001]
[1733658514759,0.00622599,99909.0,99900.0,0.001]
[1733658515197,0.00622599,99909.0,99899.0,6.099e-05]
[1733658515408,0.00622599,99909.0,99901.0,0.14692951]
[1733658515620,0.0008658,99920.0,99900.0,0.003]
[1733658515827,0.180156,99914.0,99900.0,0.003]
[1733658516058,0.180162,99910.0,99900.0,0.003]
[1733658516500,0.180162,99910.0,99899.0,6.099e-05]
[1733658516501,0.00622599,99909.0,99899.0,6.099e-05]
[1733658516713,0.00622599,99909.0,99901.0,0.003]
[1733658516883,0.00622599,99909.0,99899.0,0.1000905]
[1733658517188,0.00622599,99909.0,99899.0,0.1010905]
[1733658517427,0.00622599,99909.0,99900.0,0.001]
[1733658518596,0.00622599,99909.0,99900.0,0.181179]
[1733658518821,0.00622599,99909.0,99901.0,0.023]
[1733658519029,0.180157,99913.0,99901.0,0.023]
[1733658519239,0.00621982,99908.0,99901.0,0.023]
[1733658519465,0.180157,99913.0,99901.0,0.023]
[1733658519925,0.00621982,99912.0,99901.0,0.023]
[1733658520108,0.00621982,99912.0,99901.0,0.024]
[1733658520273,0.00621982,99912.0,99901.0,0.023]
[1733658520274,0.18016,99911.0,99901.0,0.023]
[1733658520507,0.18016,99911.0,99899.0,0.0010619]
[1733658520673,0.00622466,99910.0,99899.0,0.0010619]
[1733658521528,0.00622466,99910.0,99901.0,0.023]
[1733658521965,0.180156,99914.0,99901.0,0.023]
[1733658522178,0.00622466,99909.0,99901.0,0.023]
[1733658522393,0.180156,99914.0,99901.0,0.203177]
[1733658522656,0.00622466,99908.0,99901.0,0.203177]
[1733658523096,0.180156,99914.0,99901.0,0.023]
[1733658523301,0.00622775,99907.0,99901.0,0.023]
[1733658523727,0.180156,99914.0,99901.0,0.023]
[1733658523940,0.00622775,99913.0,99901.0,0.023]
[1733658524160,0.180174,99904.0,99901.0,0.001]
[1733658524374,0.180174,99904.0,99900.0,0.0017308]
[1733658524600,0.180176,99902.0,99900.0,0.0017308]
[1733658524797,0.180176,99902.0,99901.0,0.003]
[1733658525125,0.180176,99902.0,99900.0,0.0017308]